bitfinex-derivatives/quotes_ETHF0:USTF0_20241022
["timestamp","ask_amount","ask_price","bid_price","bid_amount"]
[1729603801776,1.75014,2632.0,2631.9,1.37]
[1729603801976,1.75014,2632.0,2631.9,0.38016]
[1729603802177,1.37,2632.0,2631.7,1.37]
[1729603802376,1.37,2631.8,2631.6,1.37]
[1729603802581,1.75019,2631.8,2631.7,0.38018]
[1729603802784,0.3802,2631.7,2631.6,0.38019]
[1729603803090,0.38022,2631.6,2631.5,0.3802]
[1729603803282,1.37,2631.6,2631.1,8.47134]
[1729603803585,1.75023,2631.4,2631.3,1.75024]
[1729603803877,1.37,2631.7,2631.4,0.95058]
[1729603804076,4.15815,2632.1,2631.7,0.38017]
[1729603804077,1.75018,2631.8,2631.7,0.38017]
[1729603804584,1.37,2631.8,2631.3,2.32061]
[1729603804784,0.38021,2631.7,2631.6,0.38019]
[1729603804984,1.75021,2631.7,2631.6,0.38019]
[1729603805488,1.75019,2631.7,2631.6,0.38019]
[1729603806482,1.37,2631.8,2631.6,1.37]
[1729603806784,1.37,2631.8,2631.7,0.38019]
[1729603806979,1.75017,2631.8,2631.7,0.38019]
[1729603807886,1.37,2631.8,2631.3,1.37]
[1729603808086,0.38023,2631.5,2631.4,0.3802]
[1729603808287,1.75023,2631.5,2631.4,0.38023]
[1729603809487,1.37,2631.5,2631.4,0.38023]
[1729603809784,1.75022,2631.5,2631.4,0.38023]
[1729603810996,1.37,2631.5,2631.4,0.38023]
[1729603811283,1.75022,2631.5,2631.4,0.38023]
[1729603811986,1.37,2631.5,2631.4,0.38023]
[1729603812385,1.75022,2631.5,2631.4,0.38023]
[1729603813590,1.37,2631.5,2631.4,0.38023]
[1729603813991,1.75022,2631.5,2631.4,0.38023]
[1729603814987,0.38026,2631.3,2631.2,0.38024]
[1729603815192,0.38026,2631.2,2631.1,7.48161]
[1729603815388,10.12886,2631.2,2631.1,3.89354]
[1729603815590,8.75886,2631.2,2631.1,3.89354]
[1729603815789,3.58806,2631.2,2631.1,4.27381]
[1729603816101,0.38025,2631.3,2631.2,0.38026]
[1729603816292,0.38019,2631.8,2631.7,0.38017]
[1729603816592,0.38021,2631.6,2631.5,0.38019]
[1729603817390,1.75021,2631.6,2631.5,0.38019]
[1729603817588,0.38024,2631.5,2631.4,0.38022]
[1729603817788,1.75024,2631.5,2631.4,0.38022]
[1729603817988,1.37,2631.5,2631.4,1.75022]
[1729603818710,1.75016,2632.0,2631.9,0.38015]
[1729603818995,0.38017,2631.9,2631.8,0.38016]
[1729603819196,1.75017,2631.9,2631.8,0.38016]
[1729603822802,1.75017,2631.9,2631.8,1.75016]
[1729603823196,3.2078,2632.2,2631.8,1.37]
[1729603823502,0.38015,2632.1,2632.0,1.75013]
[1729603823701,4.95793,2632.2,2632.1,0.38013]
[1729603824700,1.37,2632.2,2632.0,1.37]
[1729603824895,0.38013,2632.1,2632.0,0.38013]
[1729603825100,1.75013,2632.1,2632.0,0.38013]
[1729603826198,1.37,2632.1,2632.0,0.38013]
[1729603826605,1.75013,2632.1,2632.0,0.38013]
[1729603826799,0.35601431,2632.5,2632.0,1.37]
[1729603826995,1.7501,2632.4,2632.3,1.7501]
[1729603827201,0.38003,2632.8,2632.5,0.38007]
[1729603827400,1.37,2633.0,2632.7,1.37]
[1729603827601,4.15771,2633.3,2632.9,1.37]
[1729603827602,3.2078,2633.3,2632.9,1.37]
[1729603827812,1.74994,2633.5,2633.4,0.37994]
[1729603828003,3.2078,2633.9,2633.4,1.37]
[1729603828201,3.2078,2633.9,2633.8,1.37]
[1729603828404,1.74987,2633.9,2633.8,1.37]
[1729603829009,1.37,2633.9,2633.7,1.37]
[1729603829214,1.37,2633.8,2633.3,1.37]
[1729603829403,1.37,2633.6,2633.5,1.37]
[1729603829712,3.2078,2634.2,2633.5,4.5778]
[1729603829899,3.2078,2634.2,2634.1,1.74984]
[1729603830098,0.37981,2634.4,2634.1,1.37]
[1729603830405,1.74981,2634.4,2634.3,1.37]
[1729603830603,0.37982,2634.3,2634.2,1.37]
[1729603830804,1.74982,2634.3,2634.2,1.37]
[1729603831314,0.3798,2634.4,2634.2,1.37]
[1729603831609,1.7498,2634.5,2634.3,1.37]
[1729603831808,1.37,2634.4,2634.3,1.37]
[1729603832409,0.3798,2634.4,2634.2,0.37982]
[1729603832614,3.2078,2634.8,2634.2,2.97]
[1729603832805,0.37975,2634.7,2634.5,0.37978]
[1729603833108,3.58755,2634.8,2634.5,0.37978]
[1729603833305,3.58755,2634.8,2634.4,2.97]
[1729603833306,3.2078,2634.8,2634.4,2.97]
[1729603833511,0.37976,2634.7,2634.4,2.97]
[1729603833706,3.58755,2634.8,2634.5,0.37977]
[1729603834213,3.2078,2634.8,2634.4,2.97]
[1729603834516,3.58754,2634.8,2634.5,0.37978]
[1729603834804,3.58755,2634.8,2634.5,0.37978]
[1729603835207,3.2078,2634.8,2634.4,2.97]
[1729603835403,0.37976,2634.7,2634.4,3.34979]
[1729603835604,2.97,2634.6,2634.1,3.2078]
[1729603835802,3.91945,2634.6,2633.8,6.1778]
[1729603836003,0.37985,2634.1,2633.8,6.55768]
[1729603836411,3.91945,2634.6,2633.8,6.55768]
[1729603836714,0.37983,2634.2,2633.8,6.55768]
[1729603836910,2.97,2634.6,2633.8,6.1778]
[1729603837409,2.97,2634.6,2633.8,6.55767]
[1729603837609,0.37985,2634.1,2633.8,6.55767]
[1729603838110,2.97,2634.6,2633.8,6.1778]
[1729603838310,2.97,2634.6,2633.8,6.55768]
[1729603838311,0.37986,2634.0,2633.8,6.55768]
[1729603838510,0.37987,2633.9,2633.6,0.3799]
[1729603838813,0.37986,2634.0,2633.8,3.2078]
[1729603839013,0.37987,2633.9,2633.7,0.37989]
[1729603839214,3.91953,2634.4,2633.6,2.97]
[1729603839512,3.91953,2634.4,2633.8,3.2078]
[1729603839513,0.37987,2633.9,2633.8,3.2078]
[1729603840012,0.37987,2633.9,2633.8,7.0046]
[1729603841017,0.37986,2634.0,2633.8,7.0046]
[1729603841208,2.04444,2634.6,2633.8,6.1778]
[1729603841413,0.37985,2634.1,2634.0,2.97]
[1729603841813,0.94946,2634.5,2633.8,3.2078]
[1729603841814,5.01444,2634.6,2633.8,6.1778]
[1729603842013,3.91944,2634.6,2633.8,6.1778]
[1729603842217,0.37986,2634.0,2633.8,6.55767]
[1729603842417,0.37987,2633.9,2633.8,3.2078]
[1729603842608,7.12737,2634.2,2633.5,3.2078]
[1729603842809,0.37991,2633.6,2633.5,3.58772]
[1729603843008,0.37991,2633.6,2633.5,3.2078]
[1729603843711,0.37996,2633.3,2633.2,3.2078]
[1729603843911,0.38,2633.0,2632.9,3.2078]
[1729603844616,0.38004,2632.7,2632.6,3.2078]
[1729603845309,0.38009,2632.4,2632.3,3.2078]
[1729603845512,7.71854,2632.7,2631.3,14.3732]
[1729603845513,0.95017,2632.6,2632.0,3.58793]
[1729603845711,2.97,2632.7,2632.0,3.2078]
[1729603845906,0.38013,2632.1,2632.0,3.2078]
[1729603846511,0.3802,2631.7,2631.6,3.2078]
[1729603846907,3.92033,2632.2,2631.6,3.2078]
[1729603847105,3.92033,2632.2,2631.5,3.2078]
[1729603847106,2.97,2632.2,2631.5,3.2078]
[1729603847513,0.95035,2632.1,2631.3,2.97]
[1729603847713,2.97,2631.7,2631.2,3.2078]
[1729603847909,2.97,2631.5,2631.1,3.89354]
[1729603848117,0.38026,2631.2,2631.1,3.89354]
[1729603848816,4.064,2631.5,2631.1,3.89354]
[1729603849121,0.38026,2631.2,2631.1,3.89354]
[1729603850120,4.18106,2631.2,2631.1,3.89354]
[1729603852017,4.18106,2631.2,2631.1,3.11989]
[1729603852320,4.18106,2631.2,2631.1,2.34301]
[1729603852516,0.9508,2630.9,2629.9,3.2078]
[1729603852720,2.97,2630.6,2629.9,3.2078]
[1729603853518,2.97,2630.1,2629.9,3.2078]
[1729603853821,3.35042,2630.1,2629.9,3.58824]
[1729603854019,2.97,2630.1,2629.9,3.2078]
[1729603854215,0.38043,2630.0,2629.9,3.2078]
[1729603854416,7.4624,2630.1,2629.2,3.2078]
[1729603854621,0.38046,2629.9,2629.2,3.2078]
[1729603854821,0.38046,2629.9,2629.6,0.38048]
[1729603855216,0.38047,2629.8,2629.6,0.38048]
[1729603855416,0.38046,2629.9,2629.6,0.38048]
[1729603856122,0.38046,2629.9,2629.7,0.38048]
[1729603856325,0.38044,2630.0,2629.8,0.38046]
[1729603858319,3.2078,2630.5,2629.5,3.2078]
[1729603858520,0.3804,2630.3,2629.9,0.38045]
[1729603858719,0.3804,2630.3,2630.1,0.38042]
[1729603858919,3.2078,2630.5,2629.8,3.2078]
[1729603859119,0.38041,2630.2,2630.0,0.38042]
[1729603859323,0.3804,2630.3,2630.1,0.38042]
[1729603859817,3.66,2630.4,2629.8,3.2078]
[1729603860013,0.38037,2630.5,2630.3,0.38038]
[1729603860520,3.2078,2631.1,2630.1,3.2078]
[1729603860724,3.2078,2631.1,2630.7,0.38033]
[1729603861026,0.38032,2630.8,2630.4,3.2078]
[1729603861227,0.38034,2630.7,2630.5,0.38035]
[1729603861525,0.38032,2630.8,2630.4,3.2078]
[1729603861714,0.38031,2630.9,2630.7,0.38032]
[1729603861914,9.509,2631.4,2630.3,3.2078]
[1729603862115,9.509,2631.4,2630.7,3.2078]
[1729603862421,3.66,2631.0,2630.4,3.2078]
[1729603862621,0.38035,2630.6,2630.5,0.38036]
[1729603862820,0.38036,2630.5,2630.4,3.2078]
[1729603863120,4.04036,2630.5,2630.4,3.2078]
[1729603864029,0.38036,2630.5,2630.4,3.58817]
[1729603864220,0.38036,2630.5,2630.4,3.2078]
[1729603864623,0.38036,2630.5,2630.4,3.58817]
[1729603864823,0.38036,2630.5,2630.4,3.2078]
[1729603865520,0.38036,2630.5,2630.4,3.58817]
[1729603865722,0.38036,2630.5,2630.4,3.2078]
[1729603867021,0.38035,2630.6,2630.5,0.38035]
[1729603867222,6.8678,2630.8,2630.4,3.2078]
[1729603867623,0.38035,2630.6,2630.5,0.38035]
[1729603867817,3.2078,2630.8,2630.7,0.38033]
[1729603868016,3.2078,2630.8,2630.6,0.38034]
[1729603868220,3.58812,2630.8,2630.7,0.38033]
[1729603868729,3.58812,2630.8,2630.4,3.2078]
[1729603868730,0.38035,2630.6,2630.5,0.38035]
[1729603869228,6.8678,2630.8,2630.4,3.2078]
[1729603869431,4.04036,2630.5,2630.4,3.2078]
[1729603869827,0.38042,2630.1,2630.0,0.38043]
[1729603870423,3.8024,2630.1,2629.5,3.2078]
[1729603870622,4.04048,2629.7,2629.6,0.38049]
[1729603871123,0.38049,2629.6,2629.2,3.2078]
[1729603871321,3.2078,2630.1,2629.2,4.15917]
[1729603871528,0.38045,2629.9,2629.6,0.38048]
[1729603871726,7.32,2629.7,2628.3,3.2078]
[1729603871929,3.66,2628.7,2628.3,0.95168]
[1729603872231,3.66,2628.7,2627.9,3.2078]
[1729603872232,3.66,2628.7,2628.1,3.2078]
[1729603872425,3.66,2628.7,2628.5,0.38064]
[1729603872732,4.04063,2628.7,2628.3,0.38067]
[1729603872925,0.38066,2628.5,2628.1,0.3807]
[1729603873123,0.3807,2628.2,2627.8,3.58854]
[1729603873318,3.66,2628.0,2627.8,3.2078]
[1729603873837,3.66,2628.0,2627.8,0.38074]
[1729603874129,3.66,2628.0,2627.6,0.38077]
[1729603874337,0.38077,2627.7,2627.4,3.5886]
[1729603874535,0.38078,2627.7,2627.4,3.2078]
[1729603874827,3.66,2627.7,2627.3,0.38081]
[1729603875133,0.38079,2627.6,2627.3,0.38082]
[1729603875430,0.38084,2627.2,2627.1,3.2078]
[1729603875731,0.38084,2627.2,2626.7,3.2078]
[1729603875732,0.3809,2626.8,2626.7,3.2078]
[1729603875929,3.66,2627.0,2626.8,0.38089]
[1729603876134,5.043,2627.3,2626.7,3.2078]
[1729603876432,3.66,2626.8,2626.7,3.2078]
[1729603876732,3.66,2627.0,2626.7,3.2078]
[1729603876932,3.66,2627.2,2626.7,3.2078]
[1729603877237,5.42384,2627.2,2626.7,3.5887]
[1729603877427,5.42384,2627.2,2626.7,3.2078]
[1729603877827,5.42384,2627.2,2626.8,0.38089]
[1729603878132,5.42384,2627.2,2626.7,3.2078]
[1729603878331,5.043,2627.2,2626.8,0.38089]
[1729603878635,5.043,2627.2,2626.8,0.38088]
[1729603878932,5.42385,2627.2,2626.7,3.2078]
[1729603879131,5.043,2627.2,2626.8,0.38089]
[1729603879531,5.42384,2627.2,2626.8,0.38089]
[1729603879833,5.42384,2627.2,2626.7,3.2078]
[1729603880031,5.043,2627.2,2626.7,3.2078]
[1729603880334,3.66,2626.9,2626.7,3.2078]
[1729603880531,4.04089,2626.9,2626.7,3.2078]
[1729603880828,4.04088,2626.9,2626.7,3.2078]
[1729603881034,3.66,2626.9,2626.7,3.2078]
[1729603881230,0.38086,2627.1,2626.7,3.2078]
[1729603881536,3.66,2627.1,2626.8,0.38089]
[1729603882029,3.66,2627.1,2627.0,0.38087]
[1729603882836,3.66,2627.4,2626.7,3.2078]
[1729603883130,3.66,2627.4,2627.0,3.2078]
[1729603883333,3.66,2627.1,2627.0,0.38086]
[1729603885434,3.66,2627.1,2626.9,0.38087]
[1729603885631,0.3809,2626.8,2626.7,3.2078]
[1729603885841,4.04089,2626.9,2626.7,3.2078]
[1729603886042,0.3809,2626.8,2626.7,3.2078]
[1729603886228,0.38095,2626.5,2626.3,0.38097]
[1729603886542,3.66,2626.4,2625.9,3.2078]
[1729603886734,3.66,2626.4,2626.3,0.38097]
[1729603886938,7.24872,2626.7,2626.0,0.95252]
[1729603887239,3.2078,2626.7,2626.6,0.38092]
[1729603887836,6.8678,2626.7,2626.6,0.38092]
[1729603888037,10.675,2626.7,2626.6,0.38092]
[1729603888729,6.8678,2626.7,2626.6,0.38092]
[1729603888934,0.38089,2626.9,2626.7,0.3809]
[1729603889134,3.66,2627.0,2626.6,3.2078]
[1729603889335,6.8678,2627.5,2626.9,3.2078]
[1729603889546,0.38081,2627.4,2626.9,4.15999]
[1729603889835,3.66,2627.5,2627.4,0.38081]
[1729603890439,5.044,2627.8,2627.2,3.2078]
[1729603890642,3.2078,2628.2,2628.0,0.38072]
[1729603890935,0.38068,2628.4,2628.2,0.38069]
[1729603891141,0.38068,2628.3,2628.1,3.2078]
[1729603891331,0.38068,2628.3,2628.1,3.58849]
[1729603891531,0.38073,2628.0,2627.8,0.38074]
[1729603892138,0.38075,2627.8,2627.5,3.2078]
[1729603892344,0.38073,2628.0,2627.8,0.38074]
[1729603892740,0.38072,2628.1,2627.9,0.38073]
[1729603892939,4.12,2628.3,2627.9,0.38073]
[1729603893239,4.12,2628.3,2627.8,0.38074]
[1729603893443,4.12,2628.3,2627.9,0.38073]
[1729603893654,4.12,2628.3,2627.5,3.2078]
[1729603893856,1.384,2628.5,2627.8,3.2078]
[1729603894050,0.38069,2628.3,2628.1,3.5885]
[1729603894257,0.38069,2628.2,2628.1,3.2078]
[1729603894453,4.12,2628.3,2627.4,3.2078]
[1729603894655,0.38074,2627.9,2627.8,3.2078]
[1729603894953,4.12,2628.0,2627.4,3.2078]
[1729603895257,0.38077,2627.7,2627.6,0.38078]
[1729603895455,0.38079,2627.5,2627.4,3.2078]
[1729603895649,0.38079,2627.6,2627.4,3.5886]
[1729603895851,0.38079,2627.6,2627.5,0.38079]
[1729603896458,0.38079,2627.5,2627.4,3.2078]
[1729603897856,3.8056,2627.5,2626.8,3.2078]
[1729603898056,0.38084,2627.2,2627.1,0.38084]
[1729603898257,0.38086,2627.1,2627.0,0.38087]
[1729603898457,0.38085,2627.2,2627.1,0.38085]
[1729603899060,0.38086,2627.1,2627.0,0.38086]
[1729603899260,0.38085,2627.2,2627.1,0.38085]
[1729603900061,0.38086,2627.1,2627.0,0.38086]
[1729603900261,0.38085,2627.2,2627.1,0.38085]
[1729603900662,0.38083,2627.3,2627.2,0.38083]
[1729603901356,0.38081,2627.5,2627.4,0.3808]
[1729603902061,0.38082,2627.4,2627.3,0.38081]
[1729603902761,0.38083,2627.3,2627.2,0.38083]
[1729603902962,2.33592,2627.8,2627.1,3.2078]
[1729603903162,0.3808,2627.5,2627.4,0.3808]
[1729603903461,0.38082,2627.4,2627.3,0.38082]
[1729603903662,0.38083,2627.3,2627.2,0.38083]
[1729603904164,0.38082,2627.4,2627.3,0.38082]
[1729603904462,2.3359,2627.8,2627.1,3.2078]
[1729603904651,0.38082,2627.4,2627.1,3.2078]
[1729603904857,0.38082,2627.4,2627.3,0.38082]
[1729603907361,0.38081,2627.5,2627.4,0.3808]
[1729603909566,0.38079,2627.6,2627.5,0.38079]
[1729603909760,0.38082,2627.3,2627.2,3.2078]
[1729603909969,0.38086,2627.1,2627.0,0.38086]
[1729603910264,0.38085,2627.2,2627.1,0.38084]
[1729603910468,0.38083,2627.3,2627.2,0.38082]
[1729603911058,0.95204,2627.4,2627.0,0.38086]
[1729603911260,0.38084,2627.2,2627.1,0.38083]
[1729603912966,0.38083,2627.3,2627.2,0.38081]
[1729603913268,7.3278,2627.6,2627.0,0.95217]
[1729603913468,0.3808,2627.5,2627.4,0.38079]
[1729603914264,1.418,2627.8,2627.6,0.38077]
[1729603914265,0.38077,2627.7,2627.6,0.38077]
[1729603914760,4.18637,2627.7,2627.6,0.38077]
[1729603914960,0.38077,2627.7,2627.6,0.38077]
[1729603915162,0.38077,2627.7,2627.4,3.2078]
[1729603915163,7.81958,2628.1,2627.4,3.2078]
[1729603915368,0.38075,2627.9,2627.8,0.38074]
[1729603918163,0.38073,2628.0,2627.9,0.38072]
[1729603918357,0.38068,2628.4,2628.3,0.38067]
[1729603918557,0.38066,2628.6,2628.1,4.15957]
[1729603918770,0.38068,2628.4,2628.3,0.38066]
[1729603918962,0.38068,2628.4,2628.1,3.2078]
[1729603918963,3.66,2628.6,2628.1,3.2078]
[1729603919168,0.38066,2628.5,2628.4,0.38065]
[1729603919868,0.38069,2628.3,2628.2,0.38068]
[1729603920069,0.38067,2628.4,2628.3,0.38066]
[1729603920265,0.38072,2628.1,2627.9,0.38074]
[1729603920472,0.38073,2628.0,2627.9,0.38072]
[1729603920665,0.38078,2627.7,2627.6,0.38077]
[1729603921173,4.04076,2627.8,2627.7,0.38077]
[1729603921361,4.04076,2627.8,2627.3,0.95206]
[1729603921667,4.04076,2627.8,2627.7,0.38077]
[1729603921871,0.38074,2628.0,2627.9,0.38072]
[1729603922170,0.38077,2627.8,2627.7,0.38075]
[1729603922371,0.38079,2627.6,2627.5,0.38077]
[1729603922866,3.66,2627.8,2627.3,3.2078]
[1729603923067,0.38081,2627.4,2627.3,0.38082]
[1729603923272,0.38084,2627.3,2627.2,0.38082]
[1729603923872,0.38082,2627.4,2627.3,0.38081]
[1729603924468,0.38083,2627.3,2627.2,0.38082]
[1729603925366,3.66,2627.6,2627.0,4.15997]
[1729603925576,0.38079,2627.6,2627.5,0.38078]
[1729603925871,0.38081,2627.5,2627.4,0.38079]
[1729603926077,0.38082,2627.4,2627.3,0.38081]
[1729603926265,0.38082,2627.4,2627.3,3.58861]
[1729603926465,3.66,2627.8,2627.2,3.2078]
[1729603926665,0.38081,2627.5,2627.4,0.38079]
[1729603927068,3.66,2627.8,2627.3,3.2078]
[1729603927275,0.3808,2627.6,2627.5,0.38078]
[1729603927772,0.38081,2627.4,2627.3,0.38081]
[1729603927965,0.38084,2627.3,2627.2,0.38082]
[1729603928567,3.66,2627.8,2626.9,3.2078]
[1729603928768,0.38078,2627.7,2627.6,0.38077]
[1729603929171,0.3808,2627.6,2627.5,0.38078]
[1729603929373,0.38081,2627.5,2627.4,0.3808]
[1729603929866,0.38081,2627.5,2627.0,0.95217]
[1729603929867,4.6119,2627.8,2627.2,3.2078]
[1729603930067,0.38083,2627.3,2627.2,0.38082]
[1729603930669,0.38086,2627.2,2627.1,0.38084]
[1729603931375,0.38083,2627.4,2627.3,0.38081]
[1729603931675,0.3808,2627.6,2627.5,0.38078]
[1729603932075,0.38081,2627.5,2627.4,0.3808]
[1729603933477,3.66,2627.8,2627.2,4.15989]
[1729603933672,0.38078,2627.7,2627.6,0.38077]
[1729603934272,0.38078,2627.7,2627.4,0.38079]
[1729603934273,0.3808,2627.5,2627.4,0.38079]
[1729603934579,4.61191,2627.8,2627.2,3.2078]
[1729603934781,0.95199,2627.5,2626.9,3.2078]
[1729603935077,0.38087,2627.1,2627.0,0.38086]
[1729603935878,0.38087,2627.0,2626.9,3.58868]
[1729603936079,0.38087,2627.0,2626.9,3.2078]
[1729603936473,0.38087,2627.0,2626.9,3.58868]
[1729603936877,0.38087,2627.1,2627.0,0.38085]
[1729603937082,0.38085,2627.2,2627.1,0.38084]
[1729603937585,0.38081,2627.5,2627.4,0.38079]
[1729603939485,0.38081,2627.5,2626.9,3.2078]
[1729603939784,0.38083,2627.4,2627.3,0.38081]
[1729603940579,0.3808,2627.5,2627.4,0.38079]
[1729603940876,3.66,2627.6,2627.2,4.15989]
[1729603941081,0.38078,2627.7,2627.6,0.38077]
[1729603941282,0.38081,2627.5,2627.4,0.38079]
[1729603943581,3.66,2627.6,2627.2,3.2078]
[1729603943784,0.38082,2627.3,2627.2,0.38083]
[1729603944688,0.38082,2627.4,2627.3,0.3808]
[1729603945187,0.38085,2627.2,2627.1,0.38083]
[1729603945575,0.38087,2627.1,2627.0,0.38085]
[1729603945783,0.38085,2627.2,2627.1,0.38083]
[1729603946076,0.38087,2627.1,2627.0,0.38085]
[1729603946682,0.38088,2626.9,2626.8,3.58869]
[1729603946883,0.38088,2626.9,2626.8,3.58868]
[1729603947079,0.38088,2626.9,2626.8,3.2078]
[1729603947482,3.66,2627.1,2626.7,0.3809]
[1729603947684,0.3809,2626.8,2626.7,0.3809]
[1729603947880,3.66,2626.8,2626.4,3.2078]
[1729603948087,0.38094,2626.6,2626.5,0.38093]
[1729603948288,0.38097,2626.4,2626.3,0.38095]
[1729603948687,0.38094,2626.6,2626.5,0.38092]
[1729603949488,0.38094,2626.6,2626.1,0.95249]
[1729603949489,0.38096,2626.4,2626.3,0.38095]
[1729603949793,3.66,2626.6,2626.0,3.2078]
[1729603949983,0.38099,2626.2,2626.1,0.38098]
[1729603950280,4.04097,2626.3,2626.2,0.38098]
[1729603950483,0.38097,2626.3,2626.2,0.38098]
[1729603951490,0.38093,2626.6,2626.5,0.38092]
[1729603951687,0.38097,2626.4,2626.0,4.16033]
[1729603951888,3.66,2626.6,2626.0,3.2078]
[1729603952088,0.38098,2626.3,2626.2,0.38097]
[1729603952287,0.38096,2626.4,2626.3,0.38095]
[1729603953294,0.38099,2626.3,2626.2,0.38098]
[1729603953683,0.381,2626.2,2626.1,0.38099]
[1729603953893,3.66,2626.3,2626.0,3.2078]
[1729603954089,3.66,2626.1,2625.7,3.2078]
[1729603954293,0.38108,2625.6,2625.5,0.38107]
[1729603954494,0.38108,2625.5,2625.4,3.2078]
[1729603955389,0.38112,2625.3,2625.1,2.47839325]
[1729603955693,0.3811,2625.5,2625.3,0.38111]
[1729603955992,0.3811,2625.5,2625.1,5.68619325]
[1729603956188,3.66,2625.7,2625.1,5.68619325]
[1729603956387,3.66,2625.7,2625.3,0.38111]
[1729603956593,0.3811,2625.4,2625.3,0.38111]
[1729603956794,0.38108,2625.6,2625.5,0.38108]
[1729603957096,7.24883,2625.9,2625.7,0.38105]
[1729603957390,0.38105,2625.8,2625.7,0.38106]
[1729603957588,0.38106,2625.7,2625.5,0.38107]
[1729603957988,0.38107,2625.7,2625.5,0.38108]
[1729603958590,0.38107,2625.7,2625.4,3.2078]
[1729603958591,0.38105,2625.8,2625.6,0.38107]
[1729603958792,0.38106,2625.7,2625.6,0.38107]
[1729603958994,0.38108,2625.6,2625.4,3.58889]
[1729603959195,3.66,2625.6,2625.4,3.2078]
[1729603959390,0.38108,2625.5,2625.4,3.2078]
[1729603959898,0.38108,2625.5,2625.4,3.5889]
[1729603960098,0.38109,2625.5,2625.4,0.3811]
[1729603960399,0.38106,2625.7,2625.6,0.38107]
[1729603960698,3.66,2625.9,2625.5,0.38107]
[1729603960893,0.38109,2625.5,2625.4,0.38109]
[1729603961092,0.3811,2625.4,2625.3,3.2078]
[1729603961796,3.66,2625.4,2625.1,2.85953325]
[1729603962000,0.38113,2625.2,2625.1,2.47839325]
[1729603962299,0.38113,2625.2,2625.1,2.85953325]
[1729603962695,0.38113,2625.2,2625.1,2.47839325]
[1729603963001,3.66,2625.4,2625.1,2.47839325]
[1729603963298,3.66,2625.6,2625.1,2.47839325]
[1729603963503,4.04108,2625.6,2625.5,0.38108]
[1729603963698,3.66,2625.9,2625.2,0.95283]
[1729603963998,4.04103,2625.9,2625.8,0.38104]
[1729603964198,3.66,2625.9,2625.5,3.2078]
[1729603964400,3.66,2625.7,2625.5,3.2078]
[1729603964702,3.66,2625.7,2625.6,0.38107]
[1729603965602,3.66,2625.9,2625.8,0.38103]
[1729603965801,3.2078,2626.9,2625.6,7.468]
[1729603966102,4.04092,2626.7,2626.5,0.38094]
[1729603966296,3.66,2626.4,2626.1,3.2078]
[1729603966501,3.66,2626.2,2626.1,0.38099]
[1729603966698,4.04098,2626.2,2626.0,0.381]
[1729603966899,0.38103,2625.9,2625.7,3.58885]
[1729603967102,3.66,2625.8,2625.7,3.58886]
[1729603967599,4.04104,2625.8,2625.7,3.58886]
[1729603967803,0.38107,2625.7,2625.5,0.38108]
[1729603967999,3.66,2625.6,2625.5,0.38107]
[1729603968794,4.04107,2625.6,2625.5,0.38107]
[1729603968999,3.66,2625.6,2625.5,0.38107]
[1729603969204,4.04107,2625.6,2625.5,0.38107]
[1729603969407,3.66,2625.6,2625.5,0.38107]
[1729603969998,3.66,2625.8,2625.6,0.38106]
[1729603970205,0.38106,2625.7,2625.6,0.38106]
[1729603970408,4.04105,2625.8,2625.7,0.38106]
[1729603970904,0.38109,2625.5,2625.4,0.38108]
[1729603971103,3.66,2625.5,2625.1,2.47839325]
[1729603971401,0.3811,2625.4,2625.3,0.3811]
[1729603972104,0.3811,2625.4,2625.1,2.47839325]
[1729603972105,4.0411,2625.5,2625.4,0.3811]
[1729603972299,4.0411,2625.5,2625.1,2.47839325]
[1729603972509,4.04113,2625.2,2625.1,2.47839325]
[1729603972909,7.85073,2625.2,2625.1,2.85953325]
[1729603973103,7.85073,2625.2,2625.1,2.47839325]
[1729603975412,4.04113,2625.2,2625.1,2.85953325]
[1729603975909,7.85073,2625.2,2625.1,2.47839325]
[1729603978312,1.631,2625.4,2625.1,2.47839325]
[1729603978614,4.04112,2625.3,2625.2,0.38113]
[1729603979014,3.66,2625.3,2625.1,2.47839325]
[1729603979215,0.38113,2625.2,2625.1,2.85953325]
[1729603979515,0.38113,2625.2,2625.1,2.47839325]
[1729603980115,4.19073,2625.2,2625.1,2.47839325]
[1729603981716,0.38113,2625.2,2625.1,2.85953325]
[1729603981919,4.19073,2625.2,2625.1,2.47839325]
[1729603982312,7.17073,2625.2,2625.1,2.47839325]
[1729603985017,0.38119,2624.8,2624.7,3.2078]
[1729603985315,4.88597,2624.8,2623.7,3.2078]
[1729603985514,3.2078,2624.3,2624.2,0.38127]
[1729603985718,3.2078,2624.7,2624.6,0.38121]
[1729603986217,3.2078,2625.0,2624.6,7.17161]
[1729603986413,0.38109,2625.5,2625.4,0.38109]
[1729603986613,2.98,2625.8,2625.0,6.1878]
[1729603986813,0.38107,2625.7,2625.3,3.2078]
[1729603987022,2.98,2625.8,2625.2,3.2078]
[1729603987320,0.38106,2625.7,2625.6,0.38106]
[1729603987919,0.38107,2625.6,2625.5,0.38108]
[1729603988121,3.36108,2625.6,2625.5,0.38108]
[1729603988423,3.2078,2625.8,2625.7,0.38106]